bitfinex/quotes_SOLUSD_20251117
["timestamp","ask_amount","ask_price","bid_price","bid_amount"]
[1763396254051,4.88,134.35,134.32,23.27650242]
[1763396254213,19.05767473,134.35,134.29,13.58767473]
[1763396254418,5.57,134.35,134.29,0.1]
[1763396254617,13.48767473,134.3,134.29,0.1]
[1763396254842,19.05767473,134.3,134.29,0.1]
[1763396255027,5.57,134.3,134.29,0.1]
[1763396255223,19.05767473,134.3,134.29,0.1]
[1763396255742,19.05767473,134.3,134.11,6.12753768]
[1763396255743,37.17863473,134.3,134.18,14.14767473]
[1763396255928,37.17863473,134.3,134.11,4.88]
[1763396255929,13.48767473,134.26,134.2,14.14767473]
[1763396256130,18.12096,134.3,134.22,13.48767473]
[1763396256329,13.48767473,134.28,134.22,13.48767473]
[1763396256527,13.48767473,134.27,134.21,14.17767473]
[1763396256849,13.48767473,134.28,134.22,13.48767473]
[1763396257149,13.48767473,134.28,134.22,14.17767473]
[1763396258031,4.88,134.29,134.23,0.69]
[1763396258234,0.7,134.35,134.28,13.48767473]
[1763396258419,5.74924773,134.4,134.23,10.47882769]
[1763396258420,4.88,134.37,134.33,13.48767473]
[1763396258827,4.88,134.37,134.33,14.17767473]
[1763396259026,4.88,134.37,134.33,13.48767473]
[1763396259250,0.7,134.36,134.27,0.69]
[1763396259440,4.88,134.37,134.29,13.48767473]
[1763396259624,4.88,134.37,134.32,13.48767473]
[1763396259824,18.36767473,134.37,134.31,13.48767473]
[1763396260237,18.36767473,134.37,134.18,44.64856949]
[1763396260238,13.48767473,134.35,134.27,0.69]
[1763396260420,13.48767473,134.3,134.17,0.69]
[1763396260622,54.88,134.37,134.17,0.69]
[1763396260623,4.88,134.29,134.24,13.48767473]
[1763396260932,13.48767473,134.32,134.25,0.69]
[1763396261123,4.88,134.28,134.24,13.48767473]
[1763396261324,4.88,134.28,134.25,13.48767473]
[1763396261522,55.74455064,134.41,134.27,13.48767473]
[1763396261741,55.74455064,134.41,134.28,13.48767473]
[1763396261742,13.48767473,134.34,134.28,13.48767473]
[1763396261938,4.88,134.33,134.28,13.48767473]
[1763396262315,4.88,134.33,134.29,14.17767473]
[1763396262520,4.88,134.33,134.29,0.69]
[1763396262745,4.88,134.33,134.29,14.17767473]
[1763396262937,4.88,134.33,134.28,13.48767473]
[1763396263455,4.88,134.33,134.26,0.69]
[1763396263456,14.18767473,134.32,134.26,14.17767473]
[1763396263626,4.88,134.33,134.24,9.78882769]
[1763396263627,18.36767473,134.33,134.27,14.17767473]
[1763396264017,4.88,134.33,134.28,13.48767473]
[1763396264420,4.88,134.33,134.19,4.88]
[1763396264421,4.88,134.33,134.3,13.48767473]
[1763396264817,4.88,134.33,134.31,14.17767473]
[1763396265235,4.88,134.33,134.3,13.48767473]
[1763396265434,4.88,134.33,134.27,13.48767473]
[1763396265435,18.36767473,134.33,134.27,13.48767473]
[1763396265963,4.88,134.33,134.29,13.48767473]
[1763396266162,55.74455064,134.42,134.28,0.69]
[1763396266163,0.7,134.42,134.32,13.48767473]
[1763396266466,7.72332501,134.45,134.32,9.78882769]
[1763396266467,13.48767473,134.39,134.32,9.78882769]
[1763396266622,13.48767473,134.37,134.29,9.78882769]
[1763396266948,4.86,134.36,134.31,13.48767473]
[1763396267136,4.86,134.36,134.32,13.48767473]
[1763396267650,4.86,134.36,134.26,0.69]
[1763396267651,13.48767473,134.34,134.26,0.69]
[1763396267833,4.86,134.36,134.3,13.48767473]
[1763396268143,18.34767473,134.36,134.31,13.48767473]
[1763396268353,18.34767473,134.36,134.3,13.48767473]
[1763396268850,13.48767473,134.35,134.23,4.86]
[1763396269052,13.48767473,134.35,134.27,14.17767473]
[1763396269053,13.48767473,134.33,134.27,14.17767473]
[1763396269232,13.48767473,134.33,134.14,38.57956343]
[1763396269233,13.48767473,134.32,134.26,13.48767473]
[1763396269568,4.86,134.31,134.29,13.48767473]
[1763396269749,55.74455064,134.44,134.31,9.78882769]
[1763396270068,13.48767473,134.38,134.33,13.48767473]
[1763396270356,4.86,134.37,134.33,13.48767473]
[1763396270851,4.86,134.37,134.32,14.17767473]
[1763396271051,19.04767473,134.37,134.29,10.47882769]
[1763396271247,19.04767473,134.37,134.31,13.48767473]
[1763396271467,0.7,134.36,134.26,0.69]
[1763396271686,0.7,134.36,134.27,9.78882769]
[1763396271843,13.48767473,134.34,134.27,9.78882769]
[1763396272169,13.48767473,134.34,134.26,0.69]
[1763396272170,13.48767473,134.32,134.26,0.69]
[1763396272373,4.86,134.31,134.27,13.48767473]
[1763396272531,4.86,134.31,134.23,9.78882769]
[1763396272532,4.86,134.31,134.28,0.69]
[1763396272943,4.86,134.31,134.28,14.17767473]
[1763396273327,4.86,134.31,134.28,0.69]
[1763396273520,4.86,134.31,134.28,14.17767473]
[1763396273751,4.86,134.31,134.3,23.27650242]
[1763396274127,4.84,134.35,134.3,23.96650242]
[1763396274327,4.84,134.35,134.31,13.48767473]
[1763396274523,4.84,134.35,134.32,13.48767473]
[1763396274724,0.7,134.39,134.32,13.48767473]
[1763396274725,0.7,134.39,134.33,13.48767473]
[1763396275031,18.32767473,134.38,134.33,13.48767473]
[1763396275731,4.84,134.38,134.33,13.48767473]
[1763396275936,4.84,134.38,134.33,14.17767473]
[1763396276343,4.84,134.38,134.34,14.17767473]
[1763396276728,4.84,134.38,134.34,0.69]
[1763396276929,4.84,134.38,134.35,0.69]
[1763396277151,4.84,134.38,134.35,14.17767473]
[1763396277533,4.84,134.38,134.37,13.48767473]
[1763396277731,4.84,134.38,134.36,13.48767473]
[1763396277931,4.84,134.38,134.35,13.48767473]
[1763396279140,4.84,134.38,134.32,9.78882769]
[1763396279141,0.7,134.37,134.31,9.78882769]
[1763396279442,0.7,134.37,134.32,13.48767473]
[1763396279770,0.7,134.37,134.33,13.48767473]
[1763396279957,0.7,134.37,134.32,13.48767473]
[1763396280141,13.48767473,134.36,134.3,31.60863473]
[1763396280337,14.18767473,134.37,134.31,13.48767473]
[1763396280544,13.48767473,134.34,134.26,0.69]
[1763396280738,4.84,134.33,134.26,0.69]
[1763396280953,4.84,134.33,134.28,13.48767473]
[1763396281465,0.7,134.32,134.28,13.48767473]
[1763396281664,9.47619225,134.33,134.28,13.48767473]
[1763396281963,0.7,134.32,134.27,13.48767473]
[1763396282262,13.48767473,134.28,134.2,0.69]
[1763396282452,10.38074289,134.31,134.14,0.1]
[1763396282453,14.34780362,134.27,134.21,13.48767473]
[1763396282639,5.74455064,134.29,134.14,0.1]
[1763396282640,4.63619225,134.26,134.22,13.48767473]
[1763396282839,4.82,134.26,134.21,13.48767473]
[1763396283143,4.82,134.26,134.25,23.27650242]
[1763396283465,4.63619225,134.3,134.26,9.78882769]
[1763396283760,4.63619225,134.31,134.27,13.48767473]
[1763396284078,4.63619225,134.32,134.3,23.27650242]
[1763396284252,0.7,134.31,134.25,0.69]
[1763396284454,4.63619225,134.3,134.25,13.48767473]
[1763396284650,4.63619225,134.3,134.27,13.48767473]
[1763396284951,23.74284115,134.29,134.23,13.48767473]
[1763396285263,9.56486099,134.28,134.25,13.48767473]
[1763396285467,4.63619225,134.28,134.26,13.48767473]
[1763396285649,4.63619225,134.3,134.27,23.27650242]
[1763396285849,5.52,134.32,134.27,13.48767473]
[1763396286079,13.48767473,134.3,134.21,0.69]
[1763396286261,23.05405627,134.29,134.23,13.48767473]
[1763396286442,13.48767473,134.27,134.21,13.48767473]
[1763396286648,13.48767473,134.25,134.14,0.1]
[1763396286843,21.66847088,134.24,134.17,12.10208934]
[1763396287156,21.66847088,134.24,134.16,12.10208934]
[1763396287157,12.10208934,134.22,134.16,12.10208934]
[1763396287351,12.10208934,134.2,134.14,0.1]
[1763396287542,12.10208934,134.17,134.14,0.1]
[1763396287745,12.10208934,134.15,134.14,0.1]
[1763396287941,21.66847088,134.15,134.14,0.1]
[1763396288175,10.23638154,134.15,134.14,0.1]
[1763396288335,9.56638154,134.15,134.14,0.1]
[1763396288540,4.93018929,134.15,134.14,12.20208934]
[1763396288761,4.82,134.19,134.15,9.78882769]
[1763396288962,9.63292325,134.18,134.15,12.10208934]
[1763396289142,4.69191924,134.19,134.18,9.78882769]
[1763396289346,4.69302267,134.24,134.18,21.89091703]
[1763396289541,9.63592464,134.23,134.2,12.10208934]
[1763396289768,4.94290197,134.22,134.2,12.10208934]
[1763396289945,4.69302267,134.24,134.21,21.89091703]
[1763396290145,4.93807171,134.23,134.21,9.78882769]
[1763396290345,4.82,134.25,134.22,12.10208934]
[1763396290541,9.51302267,134.28,134.24,12.10208934]
[1763396290857,4.22725151,134.27,134.25,0.72]
[1763396291163,4.82,134.28,134.2,10.50882769]
[1763396291355,4.82,134.28,134.21,0.72]
[1763396291864,4.69302267,134.31,134.27,12.10208934]
[1763396292064,4.82,134.31,134.3,12.10208934]
[1763396292271,4.69302267,134.36,134.3,12.10208934]
[1763396292441,4.82,134.35,134.29,9.78882769]
[1763396292648,4.82,134.35,134.33,12.10208934]
[1763396292846,4.82,134.35,134.33,7.70683973]
[1763396293270,4.82,134.35,134.34,7.70683973]
[1763396293650,4.82,134.35,134.33,0.72]
[1763396293854,4.82,134.35,134.34,7.70683973]
[1763396294042,4.82,134.35,134.29,9.78882769]
[1763396294043,4.82,134.35,134.26,0.72]
[1763396294257,17.8898624,134.35,134.25,10.50882769]
[1763396294453,23.48398267,134.34,134.23,9.78882769]
[1763396294784,12.3998624,134.33,134.28,7.70683973]
[1763396294963,4.69302267,134.33,134.29,7.70683973]
[1763396295166,4.69302267,134.33,134.28,9.78882769]
[1763396295493,4.69302267,134.33,134.29,7.70683973]
[1763396295654,4.69302267,134.33,134.26,9.78882769]
[1763396295655,13.0698624,134.33,134.27,7.70683973]
[1763396295854,7.70683973,134.32,134.25,0.72]
[1763396296060,13.0698624,134.33,134.27,7.70683973]
[1763396296258,13.0698624,134.33,134.28,7.70683973]
[1763396296571,4.69302267,134.33,134.29,7.70683973]
[1763396296772,4.69302267,134.33,134.28,7.70683973]
[1763396296977,18.12096,134.31,134.27,7.70683973]
[1763396297282,4.69302267,134.33,134.24,7.70683973]
[1763396297283,17.8698624,134.3,134.24,7.70683973]
[1763396297583,12.3998624,134.29,134.24,7.70683973]
[1763396297782,4.69302267,134.29,134.25,7.70683973]
[1763396297985,18.79096,134.29,134.25,7.70683973]
[1763396298189,4.70133145,134.28,134.25,7.70683973]
[1763396298358,18.79096,134.29,134.25,7.70683973]
[1763396298566,0.67,134.29,134.25,7.70683973]
[1763396298963,4.8,134.3,134.27,7.70683973]
[1763396299165,4.8,134.3,134.26,7.70683973]
[1763396299376,4.8,134.3,134.29,7.70683973]
[1763396299805,8.37683973,134.3,134.19,0.72]
[1763396299974,8.37683973,134.29,134.07,4.8]
[1763396300181,7.70683973,134.27,134.22,7.70683973]
[1763396300480,7.70683973,134.24,134.19,7.70683973]
[1763396300701,18.12096,134.27,134.08,7.70683973]
[1763396300702,4.8,134.23,134.2,7.70683973]
[1763396300908,4.8,134.23,134.19,7.70683973]
[1763396301414,0.67,134.22,134.17,7.70683973]
[1763396301578,5.37159895,134.22,134.17,7.70683973]
[1763396301782,13.07843868,134.22,134.16,7.70683973]
[1763396302078,4.8,134.23,134.19,7.70683973]
[1763396302288,4.8,134.23,134.18,7.70683973]
[1763396302476,4.8,134.23,134.12,9.78882769]
[1763396302477,12.50683973,134.23,134.12,9.78882769]
[1763396302676,4.8,134.23,134.18,7.70683973]
[1763396302876,4.8,134.23,134.19,7.70683973]
[1763396303272,4.8,134.23,134.18,7.70683973]
[1763396303690,13.35419021,134.22,134.17,7.70683973]
[1763396303887,12.68364246,134.21,134.16,7.70683973]
[1763396304081,4.8,134.2,134.16,7.70683973]
[1763396305291,4.8,134.2,134.12,9.78882769]
[1763396305292,4.8,134.2,134.17,7.70683973]
[1763396305493,4.8,134.2,134.08,7.70683973]
[1763396305494,12.50683973,134.2,134.08,7.70683973]
[1763396305721,7.70683973,134.18,134.12,7.70683973]
[1763396305932,5.47,134.2,134.14,7.70683973]
[1763396306080,5.47,134.2,134.09,9.78882769]
[1763396306081,7.70683973,134.18,134.09,9.78882769]
[1763396306287,7.70683973,134.18,134.13,7.70683973]
[1763396306480,7.70683973,134.18,134.08,7.70683973]
[1763396306708,7.70683973,134.17,134.12,7.70683973]
[1763396306933,7.70683973,134.16,134.11,7.70683973]
[1763396307132,12.50683973,134.15,134.0,11.60771647]
[1763396307340,12.50683973,134.15,134.1,7.70683973]
[1763396307546,7.70683973,134.17,134.12,7.70683973]
[1763396307742,4.8,134.14,134.13,7.70683973]
[1763396308238,4.8,134.14,134.11,7.70683973]
[1763396308448,4.8,134.14,134.01,9.78882769]
[1763396308610,7.70683973,134.13,134.0,7.70683973]
[1763396308812,7.70683973,134.11,134.0,7.70683973]
[1763396309226,7.70683973,134.11,134.05,7.70683973]
[1763396309408,7.70683973,134.1,134.05,7.70683973]
[1763396309726,4.78,134.09,134.06,7.70683973]
[1763396309925,4.78,134.09,134.0,7.70683973]
[1763396310234,4.78,134.09,134.04,7.70683973]
[1763396310551,12.48683973,134.09,134.04,7.70683973]
[1763396310708,8.37683973,134.08,134.03,7.70683973]
[1763396311319,8.37683973,134.08,134.02,7.70683973]
[1763396311320,0.67,134.07,134.02,7.70683973]
[1763396311531,8.37683973,134.07,134.02,7.70683973]
[1763396311953,0.67,134.07,134.03,7.70683973]
[1763396312250,4.78,134.09,134.04,7.70683973]
[1763396312251,12.48683973,134.09,134.04,7.70683973]
[1763396312450,0.67,134.12,134.07,7.70683973]
[1763396312612,13.02622005,134.17,134.11,7.70683973]
[1763396312928,4.78,134.16,134.13,7.70683973]
[1763396313109,4.78,134.16,134.08,7.70683973]
[1763396313110,0.67,134.22,134.14,7.70683973]
[1763396313310,9.58545564,134.24,134.19,7.70683973]
[1763396313506,0.67,134.27,134.23,7.70683973]
[1763396313735,0.67,134.27,134.25,7.70683973]
[1763396314036,4.78,134.26,134.23,7.70683973]
[1763396314236,4.78,134.26,134.17,9.78882769]
[1763396314449,0.67,134.27,134.23,7.70683973]
[1763396314652,7.70683973,134.25,134.2,7.70683973]
[1763396315538,4.78,134.26,134.24,7.70683973]
[1763396315715,3.89766444,134.35,134.25,7.70683973]
[1763396315716,4.66984097,134.32,134.25,7.70683973]
[1763396315911,25.62683973,134.33,134.31,7.70683973]
[1763396315912,17.92,134.33,134.31,7.70683973]
[1763396316115,4.78,134.32,134.31,7.70683973]
[1763396316541,17.92,134.33,134.31,7.70683973]
[1763396316725,4.78,134.32,134.24,17.49566742]
[1763396316926,4.78,134.32,134.3,7.70683973]
[1763396318018,4.78,134.32,134.31,7.70683973]
[1763396319036,4.78,134.32,134.31,25.20250715]
[1763396319246,4.78,134.32,134.31,17.49566742]
[1763396319667,4.38,134.32,134.31,25.20250715]
[1763396319957,0.71,134.4,134.32,9.78882769]
[1763396319958,4.78,134.34,134.32,9.78882769]
[1763396320254,4.78,134.34,134.33,17.49566742]
[1763396321129,0.71,134.4,134.34,9.78882769]
[1763396321324,0.71,134.4,134.33,17.49566742]
[1763396321325,4.76,134.39,134.33,9.78882769]
[1763396321525,4.76,134.39,134.38,7.70683973]
[1763396321728,4.76,134.39,134.33,9.78882769]
[1763396321947,4.76,134.39,134.38,7.70683973]
[1763396322253,5.47,134.39,134.37,7.70683973]
[1763396322426,5.47,134.39,134.38,7.70683973]
[1763396322627,5.47,134.39,134.32,25.82779973]
[1763396322846,4.76,134.39,134.38,7.70683973]
[1763396323562,5.47,134.39,134.37,7.70683973]
[1763396323767,4.76,134.39,134.31,9.78882769]
[1763396323927,0.71,134.38,134.24,7.70683973]
[1763396324127,7.70683973,134.35,134.25,18.12096]
[1763396324328,7.70683973,134.35,134.17,0.74532309]
[1763396324539,7.70683973,134.35,134.16,30.82735892]
[1763396324540,7.70683973,134.32,134.27,7.70683973]
[1763396324755,7.70683973,134.29,134.16,30.02287817]
[1763396324955,7.70683973,134.3,134.25,7.70683973]
[1763396325137,7.70683973,134.29,134.16,7.70683973]
[1763396325345,0.71,134.29,134.23,7.70683973]
[1763396325658,0.71,134.29,134.18,18.12096]
[1763396325659,0.71,134.28,134.24,7.70683973]
[1763396325858,0.71,134.28,134.23,7.70683973]
[1763396326074,0.71,134.28,134.24,7.70683973]
[1763396326276,0.71,134.29,134.19,18.12096]
[1763396326441,7.70683973,134.28,134.16,29.73517988]
[1763396326769,7.70683973,134.28,134.23,7.70683973]
[1763396326975,7.70683973,134.26,134.21,7.70683973]
[1763396327163,4.76,134.25,134.2,7.70683973]
[1763396327470,5.47,134.25,134.21,7.70683973]
[1763396327767,0.71,134.24,134.2,7.70683973]
[1763396327939,0.71,134.24,134.21,7.70683973]
[1763396328337,4.76,134.25,134.22,7.70683973]
[1763396328852,5.47,134.25,134.22,7.70683973]
[1763396329247,0.71,134.24,134.22,7.70683973]
[1763396329445,7.70683973,134.23,134.11,22.85333223]
[1763396329664,7.70683973,134.23,134.18,7.70683973]
[1763396329874,0.71,134.22,134.18,7.70683973]
[1763396330045,0.71,134.22,134.19,7.70683973]
[1763396330356,5.47,134.25,134.21,7.70683973]
[1763396330562,5.47,134.25,134.24,7.70683973]
[1763396330740,4.76,134.25,134.24,7.70683973]
[1763396331582,5.47,134.25,134.22,7.70683973]
[1763396331781,5.47,134.25,134.09,9.78882769]
[1763396331782,8.41683973,134.24,134.09,9.78882769]
[1763396332004,8.41683973,134.24,134.08,30.21872431]
[1763396332005,7.70683973,134.22,134.08,30.21872431]
[1763396332279,7.70683973,134.19,134.14,7.70683973]
[1763396332450,12.44683973,134.18,134.13,7.70683973]
[1763396332653,12.44683973,134.18,134.12,7.70683973]
[1763396332654,7.70683973,134.17,134.12,7.70683973]
[1763396332850,0.71,134.17,134.13,7.70683973]
[1763396333050,0.71,134.17,134.08,7.70683973]
[1763396333051,0.71,134.16,134.12,7.70683973]
[1763396333448,0.71,134.16,134.13,7.70683973]
[1763396333649,17.49566742,134.24,134.09,9.78882769]
[1763396333650,8.41683973,134.24,134.15,7.70683973]
[1763396333874,4.74,134.23,134.22,7.70683973]
[1763396334078,7.70683973,134.27,134.22,7.70683973]
[1763396334079,0.71,134.27,134.22,7.70683973]
[1763396334380,7.70683973,134.29,134.17,9.78882769]
[1763396334381,4.74,134.23,134.17,9.78882769]
[1763396335472,4.74,134.23,134.22,7.70683973]
[1763396336360,4.74,134.23,134.17,9.78882769]
[1763396336679,4.74,134.23,134.22,7.70683973]
[1763396336984,0.71,134.22,134.21,7.70683973]
[1763396337190,8.41683973,134.22,134.05,0.7459903]
[1763396337350,7.70683973,134.2,134.15,7.70683973]
[1763396337552,4.74,134.23,134.16,7.70683973]
[1763396337553,0.71,134.21,134.16,7.70683973]
[1763396337753,0.71,134.21,134.13,9.78882769]
[1763396337976,8.41683973,134.21,134.16,7.70683973]
[1763396338187,0.71,134.21,134.18,7.70683973]
[1763396338350,17.92,134.3,134.2,7.70683973]
[1763396338555,0.71,134.24,134.21,7.70683973]
[1763396340352,7.70683973,134.22,134.09,9.78882769]
[1763396340558,12.44683973,134.21,134.08,7.70683973]
[1763396340790,4.74,134.21,134.17,7.70683973]
[1763396341092,5.45,134.21,134.18,7.70683973]
[1763396341397,0.71,134.2,134.17,7.70683973]
[1763396341684,0.71,134.2,134.13,9.78882769]
[1763396341894,0.71,134.2,134.17,7.70683973]
[1763396342060,0.71,134.2,134.18,7.70683973]
[1763396342254,40.17,134.3,134.11,18.12096]
[1763396342453,40.17,134.3,134.08,7.70683973]
[1763396342454,0.71,134.19,134.14,7.70683973]
[1763396342784,4.74,134.18,134.14,7.70683973]
[1763396343161,5.45,134.18,134.14,7.70683973]
[1763396343360,0.71,134.17,134.13,7.70683973]
[1763396343780,0.71,134.17,134.09,27.90978769]
[1763396344282,4.65986809,134.23,134.14,7.70683973]
[1763396344485,0.71,134.2,134.14,7.70683973]
[1763396344663,8.41683973,134.2,134.11,9.78882769]
[1763396344863,7.70683973,134.19,134.14,7.70683973]
[1763396345088,8.41683973,134.19,134.13,7.70683973]
[1763396345290,4.74,134.22,134.16,7.70683973]
[1763396345291,5.45,134.22,134.16,7.70683973]
[1763396345585,4.74,134.21,134.19,7.70683973]
[1763396345971,4.74,134.21,134.12,9.78882769]
[1763396346173,4.74,134.21,134.18,7.70683973]
[1763396346390,4.74,134.21,134.17,7.70683973]
[1763396346760,0.68,134.2,134.11,18.12096]
[1763396346987,8.38683973,134.2,134.14,7.70683973]
[1763396347497,0.68,134.19,134.14,7.70683973]
[1763396347664,0.68,134.19,134.08,45.16665356]
[1763396347858,7.70683973,134.17,134.05,37.46392885]
[1763396348060,0.68,134.19,134.1,7.70683973]
[1763396348061,18.12096,134.18,134.1,7.70683973]
[1763396348266,0.68,134.17,134.1,7.70683973]
[1763396348485,0.68,134.17,134.12,7.70683973]
[1763396348676,0.68,134.17,134.14,7.70683973]
[1763396348875,0.68,134.17,134.13,7.70683973]
[1763396349273,0.68,134.17,134.14,7.70683973]
[1763396349468,4.72,134.16,134.15,7.70683973]
[1763396349670,0.68,134.2,134.15,7.70683973]
[1763396349872,5.4,134.19,134.16,7.70683973]
[1763396350484,4.72,134.19,134.16,7.70683973]
[1763396350672,0.68,134.18,134.16,7.70683973]
[1763396351007,0.68,134.18,134.15,7.70683973]
[1763396351369,4.72,134.19,134.16,7.70683973]
[1763396351603,5.4,134.19,134.16,7.70683973]
[1763396351811,0.68,134.18,134.16,7.70683973]
[1763396351965,0.68,134.18,134.1,9.78882769]
[1763396352292,0.68,134.18,134.15,7.70683973]
[1763396352597,8.38683973,134.18,134.13,7.70683973]
[1763396353072,8.38683973,134.17,134.12,7.70683973]
[1763396353278,7.70683973,134.15,134.1,7.70683973]
[1763396353486,0.68,134.14,134.1,7.70683973]
[1763396353798,40.37096,134.21,134.13,7.70683973]
[1763396353799,0.68,134.17,134.13,7.70683973]
[1763396354093,4.72,134.16,134.12,7.70683973]
[1763396354296,4.72,134.16,134.01,23.2250568]
[1763396354297,12.42683973,134.16,134.02,37.86411936]
[1763396354511,7.70683973,134.14,134.09,7.70683973]
[1763396354794,18.80096,134.15,134.08,37.45981383]
[1763396355116,12.12232753,134.1,134.06,37.74865337]
[1763396355286,5.43,134.09,134.05,12.12232753]
[1763396355607,5.43,134.09,134.04,12.12232753]
[1763396355608,17.55232753,134.09,134.04,12.12232753]
[1763396355766,17.55232753,134.09,133.94,0.1]
[1763396355767,12.12232753,134.07,134.03,12.40296279]
[1763396355965,12.12232753,134.07,133.95,0.68]
[1763396355966,12.12232753,134.07,134.04,0.28061432]
[1763396356193,12.12232753,134.07,134.02,12.12232753]
[1763396356393,12.12232753,134.06,134.01,12.12232753]
[1763396356579,12.12232753,134.05,134.0,12.12232753]
[1763396356888,4.72,134.04,134.0,12.12232753]
[1763396357096,12.12232753,134.03,133.99,12.12232753]
[1763396357305,12.12232753,134.03,133.95,0.68]
[1763396357306,12.12232753,134.02,133.94,0.1]
[1763396357594,12.12232753,134.01,133.97,12.12232753]
[1763396357806,12.12232753,134.0,133.94,0.1]
[1763396358104,0.71,133.97,133.94,12.22232753]
[1763396358284,4.72,133.99,133.96,12.12232753]
[1763396358597,5.43,133.98,133.96,12.12232753]
[1763396358801,0.71,134.0,133.97,12.12232753]
[1763396359002,4.72,133.99,133.94,9.88882769]
[1763396359211,4.72,133.99,133.94,0.1]
[1763396359420,4.72,133.98,133.94,0.78]
[1763396359620,4.72,133.98,133.94,10.56882769]
[1763396359802,4.72,133.98,133.94,0.1]
[1763396360004,4.72,133.98,133.97,12.12232753]
[1763396360610,4.72,133.98,133.94,0.1]
[1763396360838,4.72,133.98,133.97,12.12232753]
[1763396360839,5.43,133.98,133.97,12.12232753]
[1763396360993,4.72,133.98,133.97,12.12232753]
[1763396361396,4.72,133.98,133.97,22.59115522]
[1763396361924,0.71,134.05,133.98,9.78882769]
[1763396362227,17.92,134.13,133.98,9.78882769]
[1763396362228,4.72,134.07,134.05,9.78882769]
[1763396362524,0.71,134.12,134.06,12.12232753]
[1763396362525,4.72,134.08,134.06,12.12232753]
[1763396362714,4.72,134.08,134.07,12.12232753]
[1763396365918,4.72,134.09,134.08,12.12232753]
[1763396366740,4.72,134.09,134.01,12.12232753]
[1763396366741,5.43,134.09,134.01,12.12232753]
[1763396366901,0.71,134.08,134.04,12.12232753]
[1763396367232,0.71,134.08,133.96,0.68]
[1763396367233,4.72,134.09,134.07,12.12232753]
[1763396367438,4.72,134.09,134.08,21.91115522]
[1763396367806,17.92,134.13,134.08,34.71348275]
[1763396368001,17.92,134.13,134.12,21.91115522]
[1763396368303,22.64,134.13,134.12,12.12232753]
[1763396369408,22.64,134.13,134.08,9.78882769]
[1763396369612,22.64,134.13,134.12,12.12232753]
[1763396370132,22.64,134.13,134.01,49.87555784]
[1763396370133,23.35,134.13,134.05,0.68]
[1763396370334,23.35,134.13,134.02,0.68]
[1763396370335,0.71,134.12,134.02,0.68]
[1763396370504,0.71,134.12,134.07,12.12232753]
[1763396370833,17.49030814,134.12,134.07,12.12232753]
[1763396371008,17.49030814,134.12,134.04,12.12232753]
[1763396371009,12.12232753,134.1,134.04,12.12232753]
[1763396371338,0.71,134.09,134.05,12.12232753]
[1763396371646,0.71,134.09,134.01,12.12232753]
[1763396371647,0.71,134.09,134.06,12.12232753]
[1763396371804,4.72,134.08,134.05,12.12232753]
[1763396372012,0.71,134.07,134.04,12.12232753]
[1763396372225,0.71,134.07,134.01,9.78882769]
[1763396372426,0.71,134.07,134.02,12.12232753]
[1763396372627,5.36211623,134.07,134.02,12.12232753]
[1763396372814,0.71,134.07,133.98,9.78882769]
[1763396373017,0.71,134.06,134.01,12.12232753]
[1763396373543,12.83232753,134.06,134.01,12.12232753]
[1763396373736,12.83232753,134.06,133.92,49.63566249]
[1763396373737,12.12232753,134.04,133.94,0.1]
[1763396373910,4.72,134.03,133.98,12.12232753]
[1763396374111,5.43,134.03,134.0,12.12232753]
[1763396375112,0.71,134.08,134.01,18.12096]
[1763396375349,4.72,134.07,134.03,30.24328753]
[1763396375560,4.72,134.07,134.03,18.12096]
[1763396375835,0.71,134.06,134.03,30.24328753]
[1763396376150,4.72,134.07,134.04,12.12232753]
[1763396376352,4.72,134.07,134.02,27.90978769]
[1763396376641,5.36999277,134.1,134.06,12.12232753]
[1763396376813,4.72,134.09,134.06,12.12232753]
[1763396377010,5.38,134.09,134.05,12.12232753]
[1763396377212,0.66,134.08,134.05,12.12232753]
[1763396377412,0.66,134.08,134.04,30.24328753]